[Event "Klubbmästerskap 2025 Hängrond"]
[Site "Linköping, Sweden"]
[Date "2025.04.03"]
[Round "5.1"]
[White "Rogoz, Vladyslav"]
[Black "Grundel, Sam"]
[Result "0-1"]
[TimeControl "90 min + 30 sec/move"]
[WhiteElo "2099"]
[BlackElo "2019"]

1. d4 {[%clk 01:30:57]} {[%emt 00:00:03]} d5 {[%clk 01:30:41]} {[%emt
00:00:20]} 2. Nf3 {[%clk 01:31:15]} {[%emt 00:00:11]} Nf6 {[%clk 01:30:50]}
{[%emt 00:00:21]} 3. c4 {[%clk 01:31:25]} {[%emt 00:00:21]} c6 {[%clk
01:31:10]} {[%emt 00:00:10]} 4. Nc3 {[%clk 01:31:36]} {[%emt 00:00:19]} dxc4
{[%clk 01:31:22]} {[%emt 00:00:18]} 5. a4 {[%clk 01:29:43]} {[%emt 00:02:23]}
Bf5 {[%clk 01:31:14]} {[%emt 00:00:38]} 6. Ne5 {[%clk 01:26:58]} {[%emt
00:03:15]} Nbd7 {[%clk 01:29:17]} {[%emt 00:02:27]} 7. Nxc4 {[%clk 01:26:59]}
{[%emt 00:00:29]} Nb6 {[%clk 01:29:29]} {[%emt 00:00:18]} 8. Ne3 {[%clk
01:26:32]} {[%emt 00:00:57]} e6 {[%clk 01:20:34]} {[%emt 00:09:25]} 9. Nxf5
{[%clk 01:24:59]} {[%emt 00:02:03]} exf5 {[%clk 01:20:39]} {[%emt 00:00:25]} 10.
Bg5 {[%clk 01:23:57]} {[%emt 00:01:31]} Bb4 {[%clk 01:18:35]} {[%emt 00:02:34]}
11. e3 {[%clk 01:22:56]} {[%emt 00:01:32]} Nbd5 {[%clk 01:17:27]} {[%emt
00:01:37]} 12. Bxf6 {[%clk 01:21:21]} {[%emt 00:02:06]} Nxf6 {[%clk 01:15:17]}
{[%emt 00:02:40]} 13. Bc4 {[%clk 01:20:23]} {[%emt 00:01:28]} O-O {[%clk
01:14:38]} {[%emt 00:01:08]} 14. O-O {[%clk 01:19:38]} {[%emt 00:01:16]} Qe7
{[%clk 01:13:21]} {[%emt 00:01:48]} 15. Qc2 {[%clk 01:17:28]} {[%emt 00:02:40]}
g6 {[%clk 01:10:59]} {[%emt 00:02:52]} 16. Ne2 {[%clk 01:16:17]} {[%emt
00:01:41]} Rac8 {[%clk 01:06:42]} {[%emt 00:04:47]} 17. Rfd1 {[%clk 01:14:59]}
{[%emt 00:01:48]} b5 {[%clk 01:01:37]} {[%emt 00:05:36]} 18. Ba2 {[%clk
01:13:36]} {[%emt 00:01:52]} c5 {[%clk 01:01:02]} {[%emt 00:01:05]} 19. d5
{[%clk 01:09:36]} {[%emt 00:04:31]} a6 {[%clk 01:00:21]} {[%emt 00:01:10]} 20.
axb5 {[%clk 01:03:38]} {[%emt 00:06:27]} axb5 {[%clk 00:56:56]} {[%emt
00:03:54]} 21. d6 {[%clk 01:02:00]} {[%emt 00:02:09]} Qb7 {[%clk 00:54:58]}
{[%emt 00:02:27]} 22. Qb3 {[%clk 00:56:58]} {[%emt 00:05:32]} Rfd8 {[%clk
00:50:35]} {[%emt 00:04:54]} 23. Nf4 {[%clk 00:56:13]} {[%emt 00:01:16]} Ne4
{[%clk 00:47:02]} {[%emt 00:04:03]} 24. Nd5 {[%clk 00:51:55]} {[%emt 00:04:48]}
Rxd6 {[%clk 00:44:37]} {[%emt 00:02:55]} 25. Nxb4 {[%clk 00:51:41]} {[%emt
00:00:44]} Nd2 {[%clk 00:38:05]} {[%emt 00:07:02]} 26. Rxd2 {[%clk 00:44:17]}
{[%emt 00:07:54]} Rxd2 {[%clk 00:36:16]} {[%emt 00:02:19]} 27. Nd5 {[%clk
00:44:28]} {[%emt 00:00:18]} Rd8 {[%clk 00:35:26]} {[%emt 00:01:20]} 28. Nc3
{[%clk 00:43:44]} {[%emt 00:01:15]} b4 {[%clk 00:31:37]} {[%emt 00:04:20]} 29.
Rf1 {[%clk 00:29:37]} {[%emt 00:14:36]} c4 {[%clk 00:28:18]} {[%emt 00:03:50]}
30. Qxc4 {[%clk 00:29:55]} {[%emt 00:00:12]} bxc3 {[%clk 00:26:31]} {[%emt
00:02:17]} 31. bxc3 {[%clk 00:28:12]} {[%emt 00:02:14]} Rc8 {[%clk 00:25:08]}
{[%emt 00:01:52]} 32. Qb3 {[%clk 00:28:30]} {[%emt 00:00:12]} Qa7 {[%clk
00:22:27]} {[%emt 00:03:11]} 33. Bb1 {[%clk 00:28:07]} {[%emt 00:00:53]} Rb8
{[%clk 00:21:02]} {[%emt 00:01:55]} 34. Qc4 {[%clk 00:27:02]} {[%emt 00:01:35]}
Rbb2 {[%clk 00:20:55]} {[%emt 00:00:37]} 35. h4 {[%clk 00:22:12]} {[%emt
00:05:20]} Qxe3 {[%clk 00:16:07]} {[%emt 00:05:18]} 36. Ba2 {[%clk 00:17:29]}
{[%emt 00:05:13]} Qa7 {[%clk 00:16:06]} {[%emt 00:00:30]} 37. Bb3 {[%clk
00:15:38]} {[%emt 00:02:22]} Qb7 {[%clk 00:14:16]} {[%emt 00:02:20]} 38. Bd1
{[%clk 00:15:03]} {[%emt 00:01:04]} Qe4 {[%clk 00:14:06]} {[%emt 00:00:40]} 39.
Qc8+ {[%clk 00:14:39]} {[%emt 00:00:54]} Kg7 {[%clk 00:14:31]} {[%emt
00:00:06]} 40. Bf3 {[%clk 00:13:24]} {[%emt 00:01:45]} Qxh4 {[%clk 00:13:24]}
{[%emt 00:01:36]} 41. Qc5 {[%clk 00:13:41]} {[%emt 00:00:13]} Qf4 {[%clk
00:12:21]} {[%emt 00:01:34]} 42. c4 {[%clk 00:13:20]} {[%emt 00:00:51]} Ra2
{[%clk 00:09:29]} {[%emt 00:03:23]} 43. Bd5 {[%clk 00:12:44]} {[%emt 00:01:05]}
Qe5 {[%clk 00:09:27]} {[%emt 00:00:32]} 44. Qb6 {[%clk 00:11:16]} {[%emt
00:01:58]} Ra1 {[%clk 00:08:49]} {[%emt 00:01:08]} 45. g3 {[%clk 00:11:19]}
{[%emt 00:00:27]} Rxf1+ {[%clk 00:07:30]} {[%emt 00:01:50]} 46. Kxf1 {[%clk
00:11:45]} {[%emt 00:00:04]} Qd4 {[%clk 00:07:41]} {[%emt 00:00:19]} 47. Qxd4+
{[%clk 00:12:06]} {[%emt 00:00:09]} Rxd4 {[%clk 00:08:06]} {[%emt 00:00:05]} 48.
Ke2 {[%clk 00:12:30]} {[%emt 00:00:06]} Kf6 {[%clk 00:08:18]} {[%emt 00:00:17]}
49. Ke3 {[%clk 00:12:27]} {[%emt 00:00:33]} Rxd5 {[%clk 00:08:02]} {[%emt
00:00:46]} 50. cxd5 {[%clk 00:12:32]} {[%emt 00:00:26]} Ke5 {[%clk 00:08:23]}
{[%emt 00:00:08]} 51. Kf3 {[%clk 00:10:49]} {[%emt 00:02:14]} Kxd5 {[%clk
00:08:25]} {[%emt 00:00:28]} 52. Kf4 {[%clk 00:11:07]} {[%emt 00:00:12]} f6
{[%clk 00:08:43]} {[%emt 00:00:12]} 53. Kf3 {[%clk 00:10:02]} {[%emt 00:01:35]}
h5 {[%clk 00:08:26]} {[%emt 00:00:47]} 54. Kf4 {[%clk 00:10:25]} {[%emt
00:00:07]} Kd4 {[%clk 00:08:42]} {[%emt 00:00:14]} 55. Kf3 {[%clk 00:10:39]}
{[%emt 00:00:16]} g5 {[%clk 00:08:59]} {[%emt 00:00:13]} 56. Kg2 {[%clk
00:10:55]} {[%emt 00:00:14]} Ke4 {[%clk 00:09:13]} {[%emt 00:00:16]} 57. Kf1
{[%clk 00:10:22]} {[%emt 00:01:03]} Kf3 {[%clk 00:09:21]} {[%emt 00:00:22]} 58.
Kg1 {[%clk 00:10:48]} {[%emt 00:00:04]} f4 {[%clk 00:09:25]} {[%emt 00:00:26]}
59. gxf4 {[%clk 00:11:11]} {[%emt 00:00:07]} Kxf4 {[%clk 00:09:36]} {[%emt
00:00:20]} 60. Kg2 {[%clk 00:11:37]} {[%emt 00:00:04]} g4 {[%clk 00:09:48]}
{[%emt 00:00:18]} 61. Kg1 {[%clk 00:11:13]} {[%emt 00:00:54]} Kf3 {[%clk
00:09:44]} {[%emt 00:00:34]} 62. Kf1 {[%clk 00:11:36]} {[%emt 00:00:06]} h4
{[%clk 00:09:47]} {[%emt 00:00:26]} 63. Kg1 {[%clk 00:12:03]} {[%emt 00:00:04]}
g3 {[%clk 00:10:00]} {[%emt 00:00:17]} 64. Kf1 {[%clk 00:12:17]} {[%emt
00:00:15]} g2+ {[%clk 00:09:42]} {[%emt 00:00:48]} 65. Kg1 {[%clk 00:12:42]}
{[%emt 00:00:05]} f5 {[%clk 00:10:06]} {[%emt 00:00:06]} 0-1

[Event "Klubbmästerskap 2025 Hängrond"]
[Site "Linköping, Sweden"]
[Date "2025.04.03"]
[Round "5.2"]
[White "Malm, Simon 1995"]
[Black "Andersson, Mats 1960"]
[Result "1/2-1/2"]
[TimeControl "90 min + 30 sec/move"]
[BlackTitle "FM"]
[WhiteElo "1976"]
[BlackElo "2263"]

1. d4 {[%clk 01:30:57]} {[%emt 00:00:03]} Nf6 {[%clk 01:30:32]} {[%emt
00:00:25]} 2. c4 {[%clk 01:31:23]} {[%emt 00:00:07]} e6 {[%clk 01:30:33]}
{[%emt 00:00:29]} 3. Nc3 {[%clk 01:30:35]} {[%emt 00:01:17]} d5 {[%clk
01:30:28]} {[%emt 00:00:35]} 4. Nf3 {[%clk 01:30:52]} {[%emt 00:00:14]} c6
{[%clk 01:30:10]} {[%emt 00:00:47]} 5. Bg5 {[%clk 01:27:25]} {[%emt 00:03:57]}
Nbd7 {[%clk 01:29:35]} {[%emt 00:01:06]} 6. e3 {[%clk 01:26:15]} {[%emt
00:01:39]} Qa5 {[%clk 01:29:49]} {[%emt 00:00:17]} 7. Nd2 {[%clk 01:25:59]}
{[%emt 00:00:47]} Bb4 {[%clk 01:28:59]} {[%emt 00:01:19]} 8. Qc2 {[%clk
01:25:54]} {[%emt 00:00:34]} O-O {[%clk 01:29:04]} {[%emt 00:00:26]} 9. Bxf6
{[%clk 01:21:50]} {[%emt 00:04:35]} Nxf6 {[%clk 01:29:10]} {[%emt 00:00:24]} 10.
Bd3 {[%clk 01:22:07]} {[%emt 00:00:13]} dxc4 {[%clk 01:19:22]} {[%emt
00:10:16]} 11. Nxc4 {[%clk 01:21:23]} {[%emt 00:01:16]} Qc7 {[%clk 01:19:41]}
{[%emt 00:00:11]} 12. O-O {[%clk 01:17:07]} {[%emt 00:04:46]} Rd8 {[%clk
01:19:34]} {[%emt 00:00:35]} 13. Rfd1 {[%clk 01:13:41]} {[%emt 00:03:57]} Bf8
{[%clk 00:40:57]} {[%emt 00:39:07]} 14. Ne5 {[%clk 01:09:55]} {[%emt 00:04:17]}
Bd7 {[%clk 00:39:01]} {[%emt 00:02:25]} 15. Ne4 {[%clk 01:03:46]} {[%emt
00:06:39]} Nxe4 {[%clk 00:37:24]} {[%emt 00:02:07]} 16. Bxe4 {[%clk 01:03:48]}
{[%emt 00:00:28]} g6 {[%clk 00:37:43]} {[%emt 00:00:12]} 17. h4 {[%clk
01:00:56]} {[%emt 00:03:21]} Be8 {[%clk 00:37:45]} {[%emt 00:00:28]} 18. Rac1
{[%clk 00:42:53]} {[%emt 00:18:32]} Qe7 {[%clk 00:37:25]} {[%emt 00:00:51]} 19.
g3 {[%clk 00:39:51]} {[%emt 00:03:32]} Bg7 {[%clk 00:36:22]} {[%emt 00:01:32]}
20. a3 {[%clk 00:37:29]} {[%emt 00:02:53]} f6 {[%clk 00:35:28]} {[%emt
00:01:23]} 21. Nd3 {[%clk 00:35:56]} {[%emt 00:02:04]} Bf7 {[%clk 00:32:36]}
{[%emt 00:03:21]} 22. Nc5 {[%clk 00:33:20]} {[%emt 00:03:06]} f5 {[%clk
00:28:17]} {[%emt 00:04:50]} 23. Bg2 {[%clk 00:33:12]} {[%emt 00:00:38]} e5
{[%clk 00:26:08]} {[%emt 00:02:39]} 24. dxe5 {[%clk 00:31:17]} {[%emt
00:02:26]} Bxe5 {[%clk 00:26:01]} {[%emt 00:00:36]} 25. b4 {[%clk 00:28:47]}
{[%emt 00:03:01]} Bd6 {[%clk 00:24:36]} {[%emt 00:01:52]} 26. Nb3 {[%clk
00:18:50]} {[%emt 00:10:30]} Bxb3 {[%clk 00:23:00]} {[%emt 00:02:06]} 1/2-1/2

[Event "Klubbmästerskap 2025 Hängrond"]
[Site "Linköping, Sweden"]
[Date "2025.04.03"]
[Round "5.3"]
[White "Qwarfort, Fredrik"]
[Black "Ekman, Theo"]
[Result "0-1"]
[TimeControl "90 min + 30 sec/move"]
[WhiteElo "1826"]
[BlackElo "1806"]

1. d4 {[%clk 01:30:58]} {[%emt 00:00:02]} Nc6 {[%clk 01:30:58]} {[%emt
00:00:03]} 2. c4 {[%clk 01:31:13]} {[%emt 00:00:15]} e5 {[%clk 01:31:06]}
{[%emt 00:00:21]} 3. d5 {[%clk 01:30:12]} {[%emt 00:01:32]} Nce7 {[%clk
01:31:23]} {[%emt 00:00:07]} 4. e4 {[%clk 01:30:15]} {[%emt 00:00:33]} Ng6
{[%clk 01:31:46]} {[%emt 00:00:06]} 5. Nc3 {[%clk 01:29:39]} {[%emt 00:01:07]}
Bc5 {[%clk 01:32:06]} {[%emt 00:00:10]} 6. a3 {[%clk 01:24:56]} {[%emt
00:05:14]} a5 {[%clk 01:32:29]} {[%emt 00:00:06]} 7. Nf3 {[%clk 01:23:39]}
{[%emt 00:01:47]} d6 {[%clk 01:32:49]} {[%emt 00:00:09]} 8. h3 {[%clk
01:22:46]} {[%emt 00:01:23]} Nf6 {[%clk 01:33:07]} {[%emt 00:00:13]} 9. Bd3
{[%clk 01:22:39]} {[%emt 00:00:38]} O-O {[%clk 01:33:19]} {[%emt 00:00:15]} 10.
Rb1 {[%clk 01:18:59]} {[%emt 00:04:11]} Nh5 {[%clk 01:30:55]} {[%emt 00:02:53]}
11. b4 {[%clk 01:18:23]} {[%emt 00:01:07]} axb4 {[%clk 01:31:18]} {[%emt
00:00:07]} 12. axb4 {[%clk 01:18:49]} {[%emt 00:00:04]} Bb6 {[%clk 01:31:08]}
{[%emt 00:00:40]} 13. Ne2 {[%clk 01:09:18]} {[%emt 00:10:01]} f5 {[%clk
01:26:29]} {[%emt 00:05:09]} 14. Be3 {[%clk 00:54:15]} {[%emt 00:15:32]} Bxe3
{[%clk 01:24:17]} {[%emt 00:02:43]} 15. fxe3 {[%clk 00:54:26]} {[%emt
00:00:19]} f4 {[%clk 01:20:04]} {[%emt 00:04:43]} 16. exf4 {[%clk 00:40:42]}
{[%emt 00:14:15]} Nhxf4 {[%clk 01:20:20]} {[%emt 00:00:13]} 17. Nxf4 {[%clk
00:40:33]} {[%emt 00:00:39]} Nxf4 {[%clk 01:20:33]} {[%emt 00:00:16]} 18. O-O
{[%clk 00:39:52]} {[%emt 00:01:12]} Qf6 {[%clk 01:12:26]} {[%emt 00:08:37]} 19.
Rb2 {[%clk 00:39:52]} {[%emt 00:00:30]} Ra3 {[%clk 01:08:39]} {[%emt 00:04:15]}
20. Rb3 {[%clk 00:34:02]} {[%emt 00:06:22]} Rxb3 {[%clk 00:36:13]} {[%emt
00:32:57]} 21. Qxb3 {[%clk 00:34:29]} {[%emt 00:00:03]} Qg6 {[%clk 00:36:14]}
{[%emt 00:00:27]} 22. Ne1 {[%clk 00:26:06]} {[%emt 00:08:55]} Nxh3+ {[%clk
00:27:54]} {[%emt 00:08:50]} 23. Kh2 {[%clk 00:26:13]} {[%emt 00:00:23]} Rxf1
{[%clk 00:27:52]} {[%emt 00:00:32]} 24. Bxf1 {[%clk 00:26:41]} {[%emt
00:00:02]} Qxe4 {[%clk 00:26:41]} {[%emt 00:01:39]} 25. Qg3 {[%clk 00:23:00]}
{[%emt 00:04:13]} Qf4 {[%clk 00:23:09]} {[%emt 00:04:02]} 26. gxh3 {[%clk
00:23:12]} {[%emt 00:00:19]} Qxf1 {[%clk 00:23:19]} {[%emt 00:00:17]} 27. Ng2
{[%clk 00:21:57]} {[%emt 00:01:46]} Qf5 {[%clk 00:19:58]} {[%emt 00:03:47]} 28.
Qh4 {[%clk 00:20:00]} {[%emt 00:02:32]} Kf7 {[%clk 00:18:02]} {[%emt 00:02:25]}
29. Qg3 {[%clk 00:19:36]} {[%emt 00:00:54]} g5 {[%clk 00:17:01]} {[%emt
00:01:31]} 30. h4 {[%clk 00:19:33]} {[%emt 00:00:34]} h6 {[%clk 00:15:50]}
{[%emt 00:01:41]} 31. hxg5 {[%clk 00:19:52]} {[%emt 00:00:11]} Qxg5 {[%clk
00:13:36]} {[%emt 00:02:42]} 32. Qf2+ {[%clk 00:19:22]} {[%emt 00:01:01]} Qf5
{[%clk 00:11:54]} {[%emt 00:02:09]} 33. Qh4 {[%clk 00:19:41]} {[%emt 00:00:13]}
Qf6 {[%clk 00:11:23]} {[%emt 00:00:50]} 34. Qh5+ {[%clk 00:19:58]} {[%emt
00:00:24]} Ke7 {[%clk 00:09:54]} {[%emt 00:01:59]} 35. Qe2 {[%clk 00:13:39]}
{[%emt 00:06:50]} Bf5 {[%clk 00:08:47]} {[%emt 00:01:36]} 36. c5 {[%clk
00:12:36]} {[%emt 00:01:34]} e4 {[%clk 00:06:36]} {[%emt 00:02:40]} 37. Kh1
{[%clk 00:08:47]} {[%emt 00:04:20]} Qa1+ {[%clk 00:06:38]} {[%emt 00:00:27]} 38.
Ne1 {[%clk 00:08:42]} {[%emt 00:00:35]} Qc3 {[%clk 00:05:34]} {[%emt 00:01:34]}
39. cxd6+ {[%clk 00:08:53]} {[%emt 00:00:20]} cxd6 {[%clk 00:05:29]} {[%emt
00:00:34]} 40. Kg2 {[%clk 00:07:10]} {[%emt 00:02:13]} Qh3+ {[%clk 00:03:03]}
{[%emt 00:02:55]} 41. Kg1 {[%clk 00:07:18]} {[%emt 00:00:23]} Qg4+ {[%clk
00:03:19]} {[%emt 00:00:14]} 0-1

[Event "Klubbmästerskap 2025 Hängrond"]
[Site "Linköping, Sweden"]
[Date "2025.04.03"]
[Round "5.4"]
[White "Snällfot, Magnus"]
[Black "Garner, Mårten"]
[Result "1-0"]
[TimeControl "90 min + 30 sec/move"]
[WhiteElo "1778"]
[BlackElo "1841"]

1. e4 {[%clk 01:30:57]} {[%emt 00:00:01]} e6 {[%clk 01:30:07]} {[%emt
00:00:55]} 2. d4 {[%clk 01:31:22]} {[%emt 00:00:05]} d5 {[%clk 01:30:33]}
{[%emt 00:00:04]} 3. exd5 {[%clk 01:31:44]} {[%emt 00:00:08]} exd5 {[%clk
01:30:56]} {[%emt 00:00:07]} 4. c4 {[%clk 01:32:09]} {[%emt 00:00:05]} c6
{[%clk 01:31:15]} {[%emt 00:00:11]} 5. Nc3 {[%clk 01:32:30]} {[%emt 00:00:09]}
Bb4 {[%clk 01:31:24]} {[%emt 00:00:20]} 6. Nf3 {[%clk 01:32:52]} {[%emt
00:00:10]} Ne7 {[%clk 01:30:57]} {[%emt 00:00:55]} 7. Qb3 {[%clk 01:32:10]}
{[%emt 00:01:12]} Ba5 {[%clk 01:29:46]} {[%emt 00:01:41]} 8. Be2 {[%clk
01:31:45]} {[%emt 00:00:56]} O-O {[%clk 01:29:48]} {[%emt 00:00:27]} 9. O-O
{[%clk 01:32:02]} {[%emt 00:00:14]} Qb6 {[%clk 01:26:46]} {[%emt 00:03:31]} 10.
cxd5 {[%clk 01:29:09]} {[%emt 00:03:25]} Qxb3 {[%clk 01:22:54]} {[%emt
00:04:22]} 11. axb3 {[%clk 01:28:57]} {[%emt 00:00:41]} Bb6 {[%clk 01:16:24]}
{[%emt 00:07:02]} 12. dxc6 {[%clk 01:26:23]} {[%emt 00:03:03]} Nbxc6 {[%clk
01:16:41]} {[%emt 00:00:13]} 13. d5 {[%clk 01:23:54]} {[%emt 00:02:59]} Nb4
{[%clk 01:10:53]} {[%emt 00:06:17]} 14. Rd1 {[%clk 01:19:17]} {[%emt 00:05:08]}
Rd8 {[%clk 01:09:37]} {[%emt 00:01:44]} 15. Bc4 {[%clk 01:14:19]} {[%emt
00:05:30]} Bg4 {[%clk 01:06:32]} {[%emt 00:03:33]} 16. Bg5 {[%clk 01:12:52]}
{[%emt 00:01:58]} Kf8 {[%clk 00:59:54]} {[%emt 00:07:08]} 17. d6 {[%clk
01:10:16]} {[%emt 00:03:07]} Nf5 {[%clk 00:54:52]} {[%emt 00:05:32]} 18. Bxd8
{[%clk 01:09:22]} {[%emt 00:01:24]} Rxd8 {[%clk 00:55:12]} {[%emt 00:00:09]} 19.
Nd5 {[%clk 01:08:07]} {[%emt 00:01:45]} Bc5 {[%clk 00:53:18]} {[%emt 00:02:20]}
20. Nxb4 {[%clk 01:06:02]} {[%emt 00:02:38]} Bxb4 {[%clk 00:53:18]} {[%emt
00:00:30]} 21. Rxa7 {[%clk 01:05:31]} {[%emt 00:01:02]} Nxd6 {[%clk 00:52:04]}
{[%emt 00:01:43]} 22. h3 {[%clk 01:02:40]} {[%emt 00:03:23]} Bf5 {[%clk
00:49:34]} {[%emt 00:02:59]} 23. Ra4 {[%clk 00:59:50]} {[%emt 00:03:19]} Bc5
{[%clk 00:48:52]} {[%emt 00:01:12]} 24. Ra5 {[%clk 00:59:32]} {[%emt 00:00:49]}
b6 {[%clk 00:46:54]} {[%emt 00:02:28]} 25. Ra6 {[%clk 00:58:48]} {[%emt
00:01:14]} Rc8 {[%clk 00:45:07]} {[%emt 00:02:16]} 26. g4 {[%clk 00:53:20]}
{[%emt 00:05:59]} Be4 {[%clk 00:32:21]} {[%emt 00:13:17]} 27. Ne5 {[%clk
00:53:08]} {[%emt 00:00:41]} Rc7 {[%clk 00:31:54]} {[%emt 00:00:56]} 28. Bd5
{[%clk 00:44:41]} {[%emt 00:08:58]} Bc2 {[%clk 00:22:03]} {[%emt 00:10:21]} 29.
Rd2 {[%clk 00:40:18]} {[%emt 00:04:53]} Bb4 {[%clk 00:21:24]} {[%emt 00:01:08]}
30. Ra8+ {[%clk 00:34:53]} {[%emt 00:05:55]} Ne8 {[%clk 00:18:10]} {[%emt
00:03:45]} 31. Re2 {[%clk 00:30:24]} {[%emt 00:04:59]} Bd1 {[%clk 00:17:11]}
{[%emt 00:01:29]} 32. Ng6+ {[%clk 00:30:13]} {[%emt 00:00:41]} 1-0

[Event "Klubbmästerskap 2025 Hängrond"]
[Site "Linköping, Sweden"]
[Date "2025.04.03"]
[Round "5.5"]
[White "Karlsson, Henrik 1974"]
[Black "Leijon, Noah"]
[Result "1-0"]
[TimeControl "90 min + 30 sec/move"]
[WhiteElo "1804"]
[BlackElo "1803"]

1. e4 {[%clk 01:30:56]} {[%emt 00:00:03]} c5 {[%clk 01:30:58]} {[%emt
00:00:03]} 2. Nf3 {[%clk 01:31:00]} {[%emt 00:00:25]} d6 {[%clk 01:31:23]}
{[%emt 00:00:06]} 3. d4 {[%clk 01:31:25]} {[%emt 00:00:04]} cxd4 {[%clk
01:31:49]} {[%emt 00:00:04]} 4. Nxd4 {[%clk 01:31:47]} {[%emt 00:00:07]} Nf6
{[%clk 01:32:16]} {[%emt 00:00:04]} 5. Nc3 {[%clk 01:32:10]} {[%emt 00:00:07]}
g6 {[%clk 01:32:41]} {[%emt 00:00:05]} 6. Be3 {[%clk 01:32:03]} {[%emt
00:00:36]} Bg7 {[%clk 01:33:07]} {[%emt 00:00:05]} 7. f3 {[%clk 01:32:21]}
{[%emt 00:00:12]} O-O {[%clk 01:33:13]} {[%emt 00:00:24]} 8. Qd2 {[%clk
01:32:42]} {[%emt 00:00:09]} Nc6 {[%clk 01:32:35]} {[%emt 00:01:09]} 9. O-O-O
{[%clk 01:33:03]} {[%emt 00:00:08]} Ne5 {[%clk 01:21:38]} {[%emt 00:11:28]} 10.
g4 {[%clk 01:31:52]} {[%emt 00:01:41]} Bd7 {[%clk 01:16:36]} {[%emt 00:05:33]}
11. h4 {[%clk 01:31:51]} {[%emt 00:00:30]} b5 {[%clk 00:51:29]} {[%emt
00:25:37]} 12. h5 {[%clk 01:29:35]} {[%emt 00:02:46]} b4 {[%clk 00:48:37]}
{[%emt 00:03:22]} 13. Nd5 {[%clk 01:24:58]} {[%emt 00:05:06]} Nxd5 {[%clk
00:43:16]} {[%emt 00:05:51]} 14. exd5 {[%clk 01:25:20]} {[%emt 00:00:07]} Qa5
{[%clk 00:42:08]} {[%emt 00:01:39]} 15. Kb1 {[%clk 01:20:11]} {[%emt 00:05:40]}
Qxd5 {[%clk 00:37:37]} {[%emt 00:05:00]} 16. hxg6 {[%clk 01:17:32]} {[%emt
00:03:08]} Nxg4 {[%clk 00:26:55]} {[%emt 00:11:13]} 17. fxg4 {[%clk 01:05:07]}
{[%emt 00:12:55]} Qxh1 {[%clk 00:24:43]} {[%emt 00:02:42]} 18. Bg2 {[%clk
01:05:15]} {[%emt 00:00:21]} Qh4 {[%clk 00:22:01]} {[%emt 00:03:11]} 19. gxf7+
{[%clk 00:54:47]} {[%emt 00:10:59]} Kh8 {[%clk 00:12:34]} {[%emt 00:09:58]} 20.
Rh1 {[%clk 00:46:43]} {[%emt 00:08:33]} Qf6 {[%clk 00:12:49]} {[%emt 00:00:15]}
21. Rxh7+ {[%clk 00:34:21]} {[%emt 00:12:52]} Kxh7 {[%clk 00:13:05]} {[%emt
00:00:14]} 22. Be4+ {[%clk 00:34:45]} {[%emt 00:00:06]} Kh8 {[%clk 00:12:39]}
{[%emt 00:00:56]} 23. Qh2+ {[%clk 00:35:10]} {[%emt 00:00:05]} Bh6 {[%clk
00:07:55]} {[%emt 00:05:14]} 24. Bxh6 {[%clk 00:35:33]} {[%emt 00:00:07]} Qxf7
{[%clk 00:08:20]} {[%emt 00:00:04]} 25. Bxf8+ {[%clk 00:35:53]} {[%emt
00:00:10]} Kg8 {[%clk 00:08:28]} {[%emt 00:00:22]} 26. Bh6 {[%clk 00:36:05]}
{[%emt 00:00:18]} Qc4 {[%clk 00:05:31]} {[%emt 00:03:27]} 27. Bc1 {[%clk
00:25:32]} {[%emt 00:11:04]} Rc8 {[%clk 00:03:34]} {[%emt 00:02:28]} 28. Qh7+
{[%clk 00:25:42]} {[%emt 00:00:20]} Kf8 {[%clk 00:03:59]} {[%emt 00:00:05]} 29.
Bg6 {[%clk 00:25:52]} {[%emt 00:00:20]} Qf1 {[%clk 00:03:15]} {[%emt 00:01:14]}
30. Qh8# {[%emt 00:00:07]} 1-0